bitfinex/quotes_BTCUSD_20241222
["timestamp","ask_amount","ask_price","bid_price","bid_amount"]
[1734893480432,0.00133369,96016.0,96015.0,0.57329619]
[1734893480641,0.00033369,96016.0,96015.0,0.56929619]
[1734893480886,0.00133369,96016.0,96015.0,0.59629619]
[1734893481539,0.00133369,96016.0,96015.0,0.94095565]
[1734893482716,0.0001714,96056.0,96051.0,0.208222]
[1734893482927,0.0050143,96052.0,96048.0,0.208228]
[1734893483114,0.0050143,96052.0,96051.0,0.00258646]
[1734893483346,0.0050143,96052.0,96048.0,0.208228]
[1734893483554,0.0050143,96052.0,96051.0,0.00258499]
[1734893483849,0.0050143,96052.0,96048.0,0.416457]
[1734893483984,0.0050143,96052.0,96051.0,0.00258499]
[1734893484187,0.0050143,96052.0,96051.0,0.00362602]
[1734893484395,0.0050143,96052.0,96051.0,0.07714089]
[1734893484594,0.0050143,96052.0,96051.0,0.07972588]
[1734893484803,0.0050143,96052.0,96051.0,0.21278736]
[1734893485018,0.0050143,96052.0,96051.0,0.2117465]
[1734893485221,0.0050143,96052.0,96051.0,0.2077465]
[1734893486353,0.0060143,96052.0,96051.0,0.2137465]
[1734893486766,0.0050143,96052.0,96051.0,0.2077465]
[1734893487090,0.0060143,96052.0,96051.0,0.2137465]
[1734893487442,0.0050143,96052.0,96051.0,0.2077465]
[1734893487645,0.0060143,96052.0,96051.0,0.2137465]
[1734893488248,0.00014352,96052.0,96051.0,0.2137465]
[1734893492381,0.00014352,96052.0,96051.0,0.2613465]
[1734893493954,0.0001714,96056.0,96055.0,0.02775311]
[1734893494158,0.0001714,96056.0,96055.0,0.13010228]
[1734893494353,0.0001714,96056.0,96055.0,0.13266822]
[1734893495231,0.0001714,96056.0,96055.0,0.10387434]
[1734893495352,0.0001714,96056.0,96055.0,0.13266822]
[1734893495556,0.0011714,96056.0,96055.0,0.11091511]
[1734893496108,0.0011714,96056.0,96055.0,0.13866822]
[1734893496912,0.0001714,96056.0,96055.0,0.13266822]
[1734893497336,0.0011714,96056.0,96055.0,0.13866822]
[1734893497579,0.0001714,96056.0,96055.0,0.13266822]
[1734893498087,0.0011714,96056.0,96055.0,0.13866822]
[1734893498239,0.0001714,96056.0,96055.0,0.13266822]
[1734893498419,0.0011714,96056.0,96055.0,0.13866822]
[1734893498860,0.0001714,96056.0,96055.0,0.13266822]
[1734893499925,0.0001714,96056.0,96055.0,0.13162745]
[1734893500314,0.0011714,96056.0,96055.0,0.13762745]
[1734893500551,0.0001714,96056.0,96055.0,0.13162745]
[1734893500720,0.0001714,96056.0,96055.0,0.13762745]
[1734893500924,0.0011714,96056.0,96055.0,0.13762745]
[1734893501152,0.0001714,96056.0,96055.0,0.13266829]
[1734893501262,0.0011714,96056.0,96055.0,0.13866829]
[1734893501798,0.0001714,96056.0,96055.0,0.13162745]
[1734893502008,0.0011714,96056.0,96055.0,0.13762745]
[1734893503252,0.0001714,96056.0,96055.0,0.00256594]
[1734893503455,0.0011714,96056.0,96055.0,0.00856594]
[1734893503710,0.0011714,96056.0,96055.0,0.00856506]
[1734893504240,0.0001714,96056.0,96055.0,0.00256506]
[1734893504442,0.07224689,96059.0,96051.0,0.00062793]
[1734893504643,0.0808,96060.0,96051.0,0.00062793]
[1734893504644,0.07324689,96056.0,96055.0,0.006]
[1734893504854,0.07224689,96052.0,96051.0,0.00062793]
[1734893505056,2.84635529,96052.0,96051.0,0.00062793]
[1734893505282,2.85287029,96052.0,96051.0,0.00062793]
[1734893505676,2.87587029,96052.0,96051.0,0.00062793]
[1734893506303,2.57187029,96052.0,96051.0,0.00062793]
[1734893507032,0.41087029,96052.0,96051.0,0.00062793]
[1734893508819,0.41287029,96052.0,96051.0,0.00062793]
[1734893509963,2.85487029,96052.0,96051.0,0.00062793]
[1734893510553,0.008515,96052.0,96051.0,0.00062793]
[1734893510728,0.008515,96052.0,96051.0,0.10572198]
[1734893510936,0.008515,96052.0,96051.0,0.22000697]
[1734893511162,0.008515,96052.0,96051.0,0.21896603]
[1734893511724,0.006515,96052.0,96051.0,0.21896603]
[1734893511929,0.006515,96052.0,96051.0,0.22296603]
[1734893513032,0.0001712,96056.0,96055.0,0.02775311]
[1734893513252,0.0001712,96056.0,96055.0,0.13248532]
[1734893514733,0.0001712,96056.0,96055.0,0.13548532]
[1734893516354,0.0001712,96056.0,96055.0,0.13248532]
[1734893517083,0.0001712,96056.0,96055.0,0.13448532]
[1734893517407,0.0001712,96056.0,96055.0,0.13248532]
[1734893517615,0.0001712,96056.0,96055.0,0.13748532]
[1734893519524,0.0001712,96056.0,96055.0,0.4799253]
[1734893519732,0.0001716,96064.0,96063.0,0.23594911]
[1734893519902,0.0001716,96064.0,96063.0,0.33725751]
[1734893520110,0.0001716,96064.0,96063.0,0.3396242]
[1734893520525,0.0001716,96064.0,96063.0,0.4159242]
[1734893520720,0.0001716,96087.0,96086.0,0.208146]
[1734893521211,0.0001716,96087.0,96086.0,0.21049822]
[1734893521824,0.00033448,96087.0,96086.0,0.00235222]
[1734893522226,0.00033448,96087.0,96079.0,0.208161]
[1734893522669,0.00033448,96087.0,96080.0,0.00235321]
[1734893522980,0.00133448,96087.0,96086.0,0.006]
[1734893523431,0.00033448,96087.0,96086.0,0.00234994]
[1734893523789,0.00033448,96087.0,96079.0,0.002]
[1734893524002,0.00033448,96087.0,96077.0,0.208164]
[1734893524185,0.00033448,96087.0,96080.0,0.00235389]
[1734893524398,0.12238137,96087.0,96086.0,0.003]
[1734893524600,0.37368977,96087.0,96086.0,0.003]
[1734893524812,0.45508977,96087.0,96086.0,0.003]
[1734893525058,3.10523377,96087.0,96086.0,0.003]
[1734893525245,3.11174851,96087.0,96086.0,0.003]
[1734893525679,3.23474851,96087.0,96086.0,0.003]
[1734893526097,0.07224689,96080.0,96079.0,0.003]
[1734893526337,0.208181,96070.0,96069.0,0.09294167]
[1734893526543,2.9014894,96070.0,96069.0,0.09294167]
[1734893526749,2.9014894,96070.0,96069.0,0.0953011]
[1734893526942,2.9014894,96070.0,96069.0,0.09294167]
[1734893527148,0.53173629,96070.0,96069.0,0.09294167]
[1734893527347,0.53825103,96070.0,96069.0,0.09294167]
[1734893527549,0.53825103,96070.0,96069.0,0.00236553]
[1734893527753,0.208193,96065.0,96052.0,0.208218]
[1734893528157,0.07224689,96062.0,96053.0,0.00237425]
[1734893528779,0.00651474,96061.0,96053.0,0.00237425]
[1734893529359,0.00651474,96060.0,96053.0,0.00237425]
[1734893529766,0.00651474,96060.0,96053.0,0.21059025]
[1734893529967,0.00651474,96060.0,96053.0,0.208216]
[1734893530248,0.00651474,96060.0,96054.0,0.0023737]
[1734893530460,0.00651474,96059.0,96054.0,0.0023737]
[1734893530607,0.208207,96058.0,96054.0,0.0023737]
[1734893530819,0.00651474,96058.0,96053.0,0.001]
[1734893531025,0.00651474,96058.0,96049.0,0.09294167]
[1734893531230,0.00651474,96058.0,96054.0,0.0023737]
[1734893531454,0.00651474,96057.0,96054.0,0.001]
[1734893531631,0.00651474,96057.0,96055.0,0.00237316]
[1734893531833,0.00651474,96057.0,96054.0,0.00154233]
[1734893532060,0.00651474,96056.0,96054.0,0.00154233]
[1734893532593,0.00651474,96055.0,96054.0,0.00154233]
[1734893533194,0.00651474,96055.0,96054.0,0.00054233]
[1734893533393,0.00651474,96055.0,96054.0,0.00291603]
[1734893535246,0.00651474,96055.0,96054.0,0.00491603]
[1734893536440,0.00651474,96055.0,96054.0,0.00291603]
[1734893536769,0.00651474,96055.0,96054.0,0.00491603]
[1734893542913,0.00651474,96055.0,96054.0,0.00508723]
[1734893544051,0.00651474,96055.0,96054.0,0.00308723]
[1734893544403,0.00651474,96055.0,96054.0,0.00408723]
[1734893547221,0.00651474,96055.0,96054.0,0.00171353]
[1734893547881,0.00651474,96055.0,96054.0,0.00408233]
[1734893553473,0.208201,96061.0,96054.0,0.00408233]
[1734893553647,0.00651597,96055.0,96054.0,0.00408233]
[1734893554658,0.208201,96061.0,96054.0,0.00408233]
[1734893555416,8.56e-05,96064.0,96054.0,0.00408233]
[1734893555622,8.56e-05,96064.0,96061.0,0.0474]
[1734893555795,8.56e-05,96064.0,96062.0,0.20923876]
[1734893556006,8.56e-05,96064.0,96063.0,0.0822]
[1734893556311,8.56e-05,96064.0,96063.0,0.08560564]
[1734893557251,0.00659971,96064.0,96063.0,0.08560564]
[1734893557452,0.00659971,96064.0,96063.0,0.00236486]
[1734893557885,0.00659971,96064.0,96063.0,0.34472834]
[1734893558080,0.00659971,96064.0,96063.0,0.34702861]
[1734893558508,0.00649323,96064.0,96063.0,0.35202861]
[1734893558651,0.00649323,96064.0,96063.0,0.34702861]
[1734893558855,0.00633574,96064.0,96063.0,0.34702861]
[1734893559119,0.00633574,96064.0,96063.0,0.00530027]
[1734893560287,0.00633574,96064.0,96063.0,0.00230027]
[1734893560482,0.00633574,96064.0,96058.0,0.09342782]
[1734893560710,0.00633574,96064.0,96063.0,0.002]
[1734893560913,0.00633574,96064.0,96063.0,0.00430027]
[1734893562473,0.00633574,96064.0,96063.0,0.09772809]
[1734893564095,0.00633574,96064.0,96063.0,0.14444201]
[1734893564651,0.00633574,96064.0,96063.0,0.14548291]
[1734893564851,0.00633574,96064.0,96063.0,0.14444201]
[1734893565058,0.00633574,96064.0,96063.0,0.34991412]
[1734893565388,0.00633574,96064.0,96063.0,0.34887327]
[1734893566490,0.00633574,96064.0,96063.0,0.53572892]
[1734893566691,0.00633574,96064.0,96063.0,0.61272892]
[1734893567686,0.00642134,96064.0,96063.0,0.42587327]
[1734893567903,0.00642134,96064.0,96063.0,0.60143478]
[1734893568106,0.00642134,96064.0,96063.0,0.70143478]
[1734893568562,0.00642134,96064.0,96063.0,0.71161331]
[1734893568949,8.56e-05,96064.0,96063.0,0.6838602]
[1734893569123,8.56e-05,96064.0,96063.0,0.96349562]
[1734893570373,8.56e-05,96064.0,96063.0,0.96149562]
[1734893570595,0.0010856,96064.0,96063.0,0.97049562]
[1734893570727,0.0010856,96064.0,96063.0,1.17056836]
[1734893570927,8.56e-05,96064.0,96063.0,1.16156836]
[1734893571729,0.0010856,96064.0,96063.0,1.17056836]
[1734893571938,0.0010856,96064.0,96063.0,1.19832147]
[1734893572603,0.0010856,96064.0,96063.0,1.88432147]
[1734893573352,0.00651353,96085.0,96084.0,0.208151]
[1734893573552,0.0001716,96087.0,96084.0,0.416302]
[1734893573776,0.0001716,96087.0,96085.0,0.00104063]
[1734893574012,0.0001716,96087.0,96086.0,0.208146]
[1734893574198,0.0001716,96087.0,96086.0,0.21042974]
[1734893574372,0.15191849,96087.0,96086.0,0.00228374]
[1734893574577,0.40338977,96087.0,96086.0,0.00228374]
[1734893574774,0.208156,96082.0,96066.0,0.208189]
[1734893574974,0.1013084,96081.0,96066.0,0.208189]
[1734893575183,0.1013084,96081.0,96066.0,0.416379]
[1734893575400,0.00651377,96080.0,96066.0,0.416379]
[1734893576050,0.1013084,96081.0,96068.0,0.09331177]
[1734893576051,0.21467577,96079.0,96068.0,0.09331177]
[1734893576253,0.00651377,96079.0,96068.0,0.09331177]
[1734893576635,0.00651377,96078.0,96068.0,0.09331177]
[1734893577265,0.00651377,96077.0,96065.0,0.20819]
[1734893577870,0.00651377,96076.0,96065.0,0.20819]
[1734893578072,0.00651377,96076.0,96068.0,0.002]
[1734893578287,0.07224689,96070.0,96068.0,0.002]
[1734893578493,0.20819,96066.0,96064.0,0.09331177]
[1734893578693,0.07224689,96065.0,96064.0,0.09331177]
[1734893578897,0.25305529,96065.0,96064.0,0.09331177]
[1734893579555,0.25956906,96065.0,96064.0,0.09331177]
[1734893579956,0.208194,96064.0,96063.0,0.0001712]
[1734893580111,0.3095024,96064.0,96063.0,0.0001712]
[1734893580722,0.07876066,96064.0,96063.0,0.0001712]
[1734893581811,0.07876066,96064.0,96063.0,0.00230227]
[1734893582408,0.07976066,96064.0,96063.0,0.00230227]
[1734893583346,0.07976066,96064.0,96063.0,0.0001712]
[1734893585032,0.07976066,96064.0,96063.0,0.00230227]
[1734893585972,0.00751377,96064.0,96063.0,0.00230227]
[1734893587008,0.00651377,96064.0,96063.0,0.00230227]
[1734893587915,0.00651377,96064.0,96063.0,0.00330227]
[1734893588312,0.00651377,96064.0,96063.0,0.00434315]
[1734893588522,0.00651377,96064.0,96063.0,0.00230227]
[1734893588877,0.00651377,96064.0,96063.0,0.00530227]
[1734893589769,0.00651377,96064.0,96063.0,0.48967112]
[1734893590712,0.00651377,96064.0,96063.0,0.48667112]
[1734893591038,0.00651377,96064.0,96063.0,0.00430227]
[1734893591853,0.00651377,96064.0,96063.0,0.10665155]
[1734893592051,0.00659937,96064.0,96063.0,0.18675146]
[1734893593327,0.00659937,96064.0,96063.0,0.00534306]
[1734893593639,0.22509275,96064.0,96063.0,0.00430227]
[1734893593849,0.29733964,96064.0,96063.0,0.34887844]
[1734893594050,0.38834866,96064.0,96063.0,0.34887844]
[1734893594335,0.61614866,96064.0,96063.0,0.34887844]
[1734893594539,0.67203856,96064.0,96063.0,0.34687844]
[1734893594742,3.23803856,96064.0,96063.0,0.34474737]
[1734893594948,3.23803856,96064.0,96063.0,0.0001712]
[1734893595574,0.15,96054.0,96053.0,0.00011786]
[1734893595769,2.6933084,96054.0,96053.0,0.00011786]
[1734893595975,2.84335529,96054.0,96053.0,0.00011786]
[1734893596250,2.87286906,96054.0,96053.0,0.00011786]
[1734893596453,0.43048189,96045.0,96044.0,0.0934189]
[1734893596665,0.43048189,96045.0,96020.0,0.0934189]
[1734893596666,0.28053389,96021.0,96020.0,0.0934189]
[1734893596866,0.38184229,96021.0,96020.0,0.09396123]
[1734893597387,0.07224689,96021.0,96020.0,0.09396123]
[1734893597499,0.15,96034.0,96020.0,0.30225023]
[1734893597706,0.00651377,96021.0,96020.0,0.30225023]
[1734893598158,0.00951377,96021.0,96020.0,0.20883133]
[1734893598345,0.00951377,96021.0,96020.0,0.00054233]
[1734893598616,0.00651377,96021.0,96020.0,0.00054233]
[1734893599034,0.00651377,96031.0,96029.0,0.208268]
[1734893599867,0.00651377,96033.0,96029.0,0.208268]
[1734893600723,0.00651377,96033.0,96029.0,0.416536]
[1734893601100,0.00651377,96045.0,96029.0,0.416536]
[1734893601326,0.07876066,96045.0,96031.0,0.208266]
[1734893601533,0.07224689,96042.0,96031.0,0.208266]
[1734893601884,0.07224689,96042.0,96032.0,0.00216681]
[1734893602083,0.07224689,96037.0,96032.0,0.00216681]
[1734893602497,0.00651377,96036.0,96029.0,0.416538]
[1734893602695,0.00651377,96036.0,96033.0,0.00216622]
[1734893602849,0.00651377,96036.0,96029.0,0.416538]
[1734893603056,0.00651377,96036.0,96034.0,0.00216563]
[1734893603284,0.07224689,96037.0,96029.0,0.208268]
[1734893603438,0.07224689,96037.0,96035.0,0.00216504]
[1734893603640,0.07224689,96037.0,96029.0,0.208268]
[1734893603885,0.00651377,96036.0,96029.0,0.208268]
[1734893604264,0.07224689,96037.0,96032.0,8.57e-05]
[1734893604265,0.00651377,96035.0,96032.0,8.57e-05]
[1734893604981,0.00651377,96034.0,96032.0,8.57e-05]
[1734893605380,0.00651377,96033.0,96032.0,8.57e-05]
[1734893607417,0.07876066,96033.0,96032.0,0.0010857]
[1734893607593,0.31006066,96033.0,96032.0,8.57e-05]
[1734893607892,0.41136906,96033.0,96032.0,0.0020857]
[1734893608342,0.41136906,96033.0,96032.0,8.57e-05]
[1734893608563,0.41136906,96033.0,96032.0,0.0010857]
[1734893608738,0.41136906,96033.0,96032.0,8.57e-05]
[1734893610134,0.41936906,96033.0,96032.0,0.0010857]
[1734893610326,2.86136906,96033.0,96032.0,0.0010857]
[1734893610891,2.85336906,96033.0,96032.0,8.57e-05]
[1734893611094,1.51436906,96033.0,96032.0,8.57e-05]
[1734893611296,1.29436906,96033.0,96032.0,8.57e-05]
[1734893611496,1.15836906,96033.0,96032.0,8.57e-05]
[1734893611704,1.12280281,96033.0,96032.0,0.0010857]
[1734893611909,0.56580281,96033.0,96032.0,0.0010857]
[1734893614430,0.55780281,96033.0,96032.0,8.57e-05]
[1734893614626,0.56580281,96033.0,96032.0,0.0010857]
[1734893617600,0.55928904,96033.0,96032.0,0.0010857]
[1734893618463,0.34198904,96033.0,96032.0,0.0010857]
[1734893618665,0.34850783,96033.0,96032.0,0.0010857]
[1734893619064,0.26582719,96033.0,96032.0,0.0010857]
[1734893619295,0.2593084,96033.0,96032.0,0.0010857]
[1734893619650,0.3380735,96033.0,96032.0,0.0010857]
[1734893620347,0.26582661,96033.0,96032.0,0.0010857]
[1734893620718,0.3380735,96033.0,96032.0,0.0010857]
[1734893621127,0.01451821,96033.0,96032.0,0.0010857]
[1734893621528,0.0867651,96033.0,96032.0,0.00377347]
[1734893621850,0.0867651,96033.0,96032.0,0.0010857]
[1734893622820,0.01451821,96033.0,96032.0,0.0010857]
[1734893623022,0.00651821,96033.0,96032.0,0.00277347]
[1734893623235,0.01451821,96033.0,96032.0,0.0010857]
[1734893624148,0.2950261,96033.0,96032.0,0.0010857]
[1734893624332,0.0867651,96033.0,96032.0,0.0010857]
[1734893624528,0.01451821,96033.0,96032.0,0.0010857]
[1734893624809,0.01451821,96033.0,96032.0,0.00377347]
[1734893626005,0.00651821,96033.0,96032.0,0.00277347]
[1734893626388,0.01451821,96033.0,96032.0,0.00377347]
[1734893626757,0.00651821,96033.0,96032.0,0.00277347]
[1734893626959,0.00751821,96033.0,96032.0,0.00277347]
[1734893627712,0.00651821,96033.0,96032.0,0.00277347]
[1734893629647,0.00651821,96033.0,96032.0,0.08797347]
[1734893630310,0.00651821,96033.0,96032.0,0.00477347]
[1734893630483,0.0787651,96033.0,96032.0,0.00477347]
[1734893630686,0.0787651,96033.0,96032.0,0.0020857]
[1734893631020,0.00651821,96033.0,96032.0,0.0020857]
[1734893632006,0.00651821,96033.0,96032.0,0.00427034]
[1734893632471,0.00651821,96033.0,96032.0,0.00227034]
[1734893632813,0.00751821,96033.0,96032.0,0.00227034]
[1734893632965,0.00651821,96033.0,96032.0,0.00227034]
[1734893633976,0.00651821,96033.0,96032.0,0.00427034]
[1734893641397,0.00651821,96033.0,96032.0,0.59059468]
[1734893641598,0.00651821,96033.0,96032.0,0.67369468]
[1734893642027,0.00651821,96033.0,96032.0,0.72019468]
[1734893642224,0.0001714,96051.0,96050.0,0.208224]
[1734893642763,0.0001714,96051.0,96050.0,0.21039664]
[1734893643122,0.00668741,96051.0,96050.0,0.21039664]
[1734893643489,0.01268741,96051.0,96050.0,0.21193897]
[1734893646914,0.01268741,96051.0,96050.0,0.33373897]
[1734893647305,0.01268741,96051.0,96050.0,0.43504737]
[1734893647951,0.01268741,96051.0,96050.0,0.44548239]
[1734893648155,0.0061714,96051.0,96050.0,0.5732355]
[1734893648365,4e-07,96051.0,96050.0,0.5732355]
[1734893648573,4e-07,96051.0,96050.0,0.7232355]
[1734893649198,4e-07,96051.0,96050.0,1.2592355]
[1734893649457,8.56e-05,96064.0,96062.0,0.1]
[1734893649693,8.56e-05,96064.0,96063.0,0.39184518]
[1734893649951,8.56e-05,96064.0,96063.0,0.3929511]
[1734893650432,8.56e-05,96064.0,96063.0,0.0021467]
[1734893650824,8.56e-05,96064.0,96063.0,0.00214581]
[1734893651023,0.00659939,96064.0,96061.0,0.416399]
[1734893651270,0.00659939,96064.0,96063.0,0.34630723]
[1734893651461,0.00759939,96064.0,96063.0,0.35316142]
[1734893651640,0.00759939,96064.0,96063.0,0.35530723]
[1734893652177,0.0010856,96064.0,96063.0,0.35530723]
[1734893652381,0.0010856,96064.0,96063.0,0.01114581]
[1734893652749,0.00659939,96064.0,96063.0,0.00214581]
[1734893652953,0.00659939,96064.0,96063.0,0.00714581]
[1734893653151,0.00659939,96064.0,96063.0,0.005]
[1734893653357,0.00659939,96064.0,96063.0,0.00214581]
[1734893653584,0.00659939,96064.0,96063.0,0.00914581]
[1734893653815,0.00659939,96064.0,96063.0,0.007]
[1734893653990,0.00659939,96064.0,96063.0,0.00914581]
[1734893654326,0.00659939,96064.0,96063.0,0.00214581]
[1734893654535,0.00659939,96064.0,96063.0,0.00914581]
[1734893654735,0.00659939,96064.0,96063.0,0.007]
[1734893654964,0.00659939,96064.0,96063.0,0.00914581]
[1734893655937,0.00659939,96064.0,96063.0,0.00214581]
[1734893656232,0.00659939,96064.0,96063.0,0.01014581]
[1734893656529,0.00659939,96064.0,96063.0,0.00213972]
[1734893656684,0.00659939,96064.0,96063.0,0.01013972]
[1734893658795,0.00659939,96064.0,96063.0,0.01118065]
[1734893658997,0.00659939,96064.0,96063.0,0.01013972]
[1734893659516,8.56e-05,96064.0,96063.0,0.00213972]
[1734893660007,8.56e-05,96064.0,96063.0,0.01013972]
[1734893660969,8.56e-05,96064.0,96063.0,0.0204589]
[1734893661181,8.56e-05,96064.0,96063.0,0.01013972]
[1734893662213,0.00659939,96064.0,96063.0,0.01013972]
[1734893664456,0.00659939,96064.0,96063.0,0.01118061]
[1734893664732,0.00659939,96064.0,96063.0,0.01013972]
[1734893669293,0.00659939,96064.0,96063.0,0.008]
[1734893669514,0.00659939,96064.0,96063.0,0.01013714]
[1734893670122,0.00659939,96064.0,96063.0,0.00213714]
[1734893670329,0.00659939,96064.0,96060.0,0.208201]
[1734893670563,0.00659939,96064.0,96063.0,0.00613714]
[1734893670766,0.07233249,96064.0,96063.0,0.004]
[1734893670926,0.07233249,96064.0,96063.0,0.00613714]
[1734893671123,0.07233249,96064.0,96063.0,0.00213714]
[1734893671324,0.07884787,96064.0,96060.0,0.208201]
[1734893671575,0.07884787,96064.0,96063.0,0.00213714]
[1734893671750,0.00651538,96063.0,96060.0,0.208201]
[1734893672403,0.00651538,96063.0,96060.0,0.416404]
[1734893672616,0.00651538,96062.0,96060.0,0.420404]
[1734893673193,0.00651538,96061.0,96060.0,0.416404]
[1734893673771,0.00651538,96061.0,96060.0,0.420404]
[1734893674176,0.00651538,96061.0,96060.0,0.416404]
[1734893674496,0.00651538,96061.0,96060.0,0.421404]
[1734893675685,0.00651538,96061.0,96060.0,0.208201]
[1734893676130,0.00651538,96061.0,96060.0,0.212201]
[1734893676355,0.00651538,96061.0,96060.0,0.21434007]
[1734893677903,0.07876227,96061.0,96060.0,0.00613907]
[1734893678582,0.07224689,96061.0,96060.0,0.00613907]
[1734893678705,0.07876242,96061.0,96060.0,0.00613907]
[1734893678929,0.07876242,96061.0,96060.0,0.00213907]
[1734893679168,0.07876242,96061.0,96053.0,0.208217]
[1734893679169,0.07876242,96061.0,96053.0,0.416435]
[1734893679366,0.07876242,96061.0,96060.0,0.002]
[1734893679945,0.07224689,96061.0,96060.0,0.002]
[1734893680195,8.56e-05,96064.0,96053.0,0.208217]
[1734893680196,0.07224689,96055.0,96053.0,0.208217]
[1734893680362,0.07224689,96053.0,96052.0,0.208219]
[1734893681468,0.07876264,96053.0,96052.0,0.208219]
[1734893681898,0.07224689,96052.0,96051.0,8.57e-05]
[1734893683255,0.07224689,96052.0,96051.0,0.0020857]
[1734893684017,0.07876291,96052.0,96051.0,0.0020857]
[1734893685696,0.07876291,96052.0,96051.0,0.00414598]
[1734893688147,0.28698291,96052.0,96051.0,0.00414598]
[1734893688525,0.28698291,96052.0,96051.0,0.0020857]
[1734893689173,0.28698291,96052.0,96051.0,8.57e-05]
[1734893693814,0.07876291,96052.0,96051.0,8.57e-05]
[1734893694238,0.00651602,96052.0,96051.0,8.57e-05]
[1734893694441,0.00651602,96052.0,96051.0,0.0795857]
[1734893694647,0.00651602,96052.0,96051.0,0.13145519]
[1734893695723,0.00651602,96052.0,96051.0,0.47599186]
[1734893696070,0.00651602,96052.0,96051.0,0.47499186]
[1734893696453,0.00651602,96052.0,96051.0,0.57630026]
[1734893696865,0.00651602,96052.0,96051.0,0.76551311]
[1734893697065,0.00651602,96063.0,96052.0,0.20822]
[1734893697268,0.00651602,96063.0,96062.0,0.208198]
[1734893697750,0.00651602,96063.0,96062.0,0.21025387]
[1734893699504,0.07876291,96063.0,96062.0,0.21725387]
[1734893703597,0.00651602,96063.0,96062.0,0.34085387]
[1734893703799,0.00651602,96063.0,96062.0,0.44216227]
[1734893704466,8.56e-05,96064.0,96062.0,0.46606227]
[1734893704663,8.56e-05,96064.0,96063.0,0.17844908]
[1734893704863,8.56e-05,96064.0,96063.0,0.18049272]
[1734893705801,8.56e-05,96064.0,96063.0,0.96649272]
[1734893706008,8.56e-05,96064.0,96063.0,0.97445204]
[1734893706772,8.56e-05,96064.0,96063.0,0.96545204]
[1734893706987,8.56e-05,96064.0,96063.0,1.30875619]
[1734893707767,8.56e-05,96064.0,96063.0,1.32947796]
[1734893708146,8.56e-05,96064.0,96063.0,1.33847796]
[1734893708553,8.56e-05,96064.0,96063.0,1.08847796]
[1734893708746,8.56e-05,96064.0,96063.0,1.18847796]
[1734893709108,8.56e-05,96064.0,96063.0,1.17947796]
[1734893709299,8.56e-05,96064.0,96063.0,1.18847796]
[1734893709632,8.56e-05,96064.0,96063.0,1.17947796]
[1734893710576,8.56e-05,96064.0,96063.0,1.18847796]
[1734893710761,8.56e-05,96064.0,96063.0,0.93125493]
[1734893711757,8.56e-05,96064.0,96063.0,0.92225493]
[1734893711965,8.56e-05,96064.0,96063.0,0.65247796]
[1734893712186,8.56e-05,96064.0,96063.0,0.64347796]
[1734893712641,8.56e-05,96064.0,96063.0,0.65247796]
[1734893713416,8.56e-05,96064.0,96063.0,0.64347796]
[1734893713661,8.56e-05,96064.0,96063.0,0.65247796]
[1734893714687,8.56e-05,96064.0,96063.0,0.88455125]
[1734893714800,8.56e-05,96064.0,96063.0,0.77555125]
[1734893715003,8.56e-05,96064.0,96063.0,0.87555125]
[1734893715203,8.56e-05,96064.0,96063.0,0.78455125]
[1734893715401,8.56e-05,96064.0,96063.0,0.87555125]
[1734893715683,8.56e-05,96064.0,96063.0,0.77555125]
[1734893715892,8.56e-05,96064.0,96063.0,0.78455125]
[1734893716091,8.56e-05,96064.0,96063.0,0.33946512]
[1734893716302,8.56e-05,96064.0,96063.0,0.24715672]
[1734893717095,8.56e-05,96064.0,96063.0,0.10786541]
[1734893717293,8.56e-05,96064.0,96063.0,0.03176541]
[1734893719623,8.56e-05,96064.0,96063.0,0.02276541]
[1734893720000,8.56e-05,96064.0,96063.0,0.03176541]
[1734893720203,8.56e-05,96064.0,96063.0,0.03280628]
[1734893721111,8.56e-05,96064.0,96063.0,0.02380628]
[1734893721536,8.56e-05,96064.0,96063.0,0.03280628]
[1734893722117,8.56e-05,96064.0,96063.0,0.03176541]
[1734893722516,8.56e-05,96064.0,96063.0,0.12462611]
[1734893723315,8.56e-05,96064.0,96063.0,0.12566698]
[1734893723503,8.56e-05,96064.0,96063.0,0.12462611]
[1734893723862,8.56e-05,96064.0,96063.0,0.03176541]
[1734893724237,8.56e-05,96064.0,96063.0,0.03280628]
[1734893725861,8.56e-05,96064.0,96063.0,0.13411468]
[1734893727821,8.56e-05,96064.0,96063.0,0.47661791]
[1734893727963,8.56e-05,96064.0,96063.0,0.47557704]
[1734893728812,8.56e-05,96064.0,96063.0,0.61474749]
[1734893729415,8.56e-05,96064.0,96063.0,0.60574749]
[1734893729832,8.56e-05,96064.0,96063.0,0.61474749]
[1734893730166,8.56e-05,96064.0,96063.0,0.60574749]
[1734893730369,8.56e-05,96064.0,96063.0,0.46657704]
[1734893730540,8.56e-05,96064.0,96063.0,0.36526864]
[1734893731391,0.00659971,96064.0,96063.0,0.37426864]
[1734893731592,0.00659971,96064.0,96063.0,0.13307381]
[1734893731795,0.00659971,96064.0,96063.0,0.13513852]
[1734893732174,0.00559971,96064.0,96063.0,0.13513852]
[1734893732629,0.14943249,96080.0,96063.0,0.12509771]
[1734893732776,0.14943249,96080.0,96064.0,0.10234918]
[1734893732971,0.14943249,96080.0,96064.0,0.10500725]
[1734893733479,0.14943249,96080.0,96079.0,0.208162]
[1734893733688,0.14943249,96080.0,96079.0,0.21081281]
[1734893734720,0.07240596,96080.0,96079.0,0.21081281]
[1734893735800,0.07240596,96080.0,96079.0,0.21481281]
[1734893741965,0.07240596,96080.0,96079.0,0.74352197]
[1734893742738,0.07240596,96080.0,96079.0,0.73952197]
[1734893743237,0.07240596,96080.0,96079.0,0.55396136]
[1734893744105,0.07240596,96080.0,96079.0,0.55796136]
[1734893744910,0.07240596,96080.0,96079.0,0.55396136]
[1734893745109,0.07240596,96080.0,96079.0,0.55596136]
[1734893745313,0.07240596,96080.0,96079.0,0.55396136]
[1734893745683,0.07240596,96080.0,96079.0,0.55796136]
[1734893747986,0.00015907,96080.0,96079.0,0.55796136]
[1734893748476,0.00015907,96080.0,96079.0,1.22144305]
[1734893748646,0.00015907,96080.0,96079.0,1.24444305]
[1734893748851,1.62327749,96079.0,96077.0,0.208165]
[1734893749009,1.62327749,96079.0,96078.0,0.208164]
[1734893749668,1.62327749,96079.0,96078.0,0.3094724]
[1734893750212,1.62327749,96079.0,96078.0,0.32993029]
[1734893751422,1.62327749,96079.0,96078.0,0.3416703]
[1734893751803,1.62327749,96079.0,96078.0,0.4217703]
[1734893758971,1.62327749,96079.0,96078.0,0.65375249]
[1734893760541,1.62327749,96079.0,96078.0,0.4217703]
[1734893760922,1.10232149,96079.0,96078.0,0.4217703]
[1734893763209,1.10232149,96079.0,96078.0,0.60731001]
[1734893764381,1.10232149,96079.0,96078.0,0.94974225]
[1734893766188,1.10232149,96079.0,96078.0,0.86964225]
[1734893766337,1.10232149,96079.0,96078.0,0.76833385]
[1734893767572,1.10232149,96079.0,96078.0,0.75933385]
[1734893767777,1.10232149,96079.0,96078.0,0.73887596]
[1734893767954,1.10232149,96079.0,96078.0,0.74787596]
[1734893768157,1.10232149,96079.0,96078.0,0.73887596]
[1734893768759,1.10232149,96079.0,96078.0,0.74787596]
[1734893768997,1.10232149,96079.0,96078.0,0.21990401]